{"text_format":"3","workbook":"xlsx","n_sheets":1,"sheets":["汇总表"],"not_rendered":{"external_links":1,"defined_names":1},"read":"whole","date_system":"1900"}

{"sheet":"汇总表","index":0,"n_rows":401,"n_cols":4,"rows_kept":401,"merged":[[0,0,0,3],[1,0,1,3],[3,1,83,1],[84,1,119,1],[120,1,134,1],[135,1,136,1],[138,1,149,1],[150,1,164,1],[165,1,180,1],[181,1,186,1],[187,1,197,1],[199,1,201,1],[202,1,205,1],[206,1,207,1],[208,1,313,1],[314,1,321,1],[322,1,330,1],[331,1,335,1],[336,1,346,1],[348,1,349,1],[350,1,351,1],[352,1,361,1],[362,1,381,1],[382,1,399,1]]}
["2020年度促进吴中区工业经济高质量发展及加快机器人与智能制造产业提升专项资金项目公示表"]
[]
["序号","项目类别","申报单位","项目名称"]
[1,"企业技术改造项目","苏州不二工机有限公司","V型膨胀阀等生产线技术改造项目"]
[2,null,"苏州电器科学研究院股份有限公司","高低压电器抗扰试验系统"]
[3,null,"恒赫鼎富（苏州）电子有限公司","恒赫鼎富设备技术改造项目"]
[4,null,"苏州天脉导热科技股份有限公司","年加工5800万只散热模组项目"]
[5,null,"苏州天立达胶粘制品有限公司","天立达年产90亿件PSA压敏双面胶AOI（光学检测）自动化技改项目"]
[6,null,"先锋导电材料工业（苏州）有限公司","电子元器件智能自动化生产线技术改造项目"]
[7,null,"盛州橡塑胶（苏州）有限公司","盛州橡塑胶（苏州）有限公司年产1.5亿只注册器用活塞生产线升级技术改造项目"]
[8,null,"苏州市和好塑业有限公司","高性能、可降解食品包装制品的生产技术改造"]
[9,null,"苏州益邦电子材料有限公司","年产100万余片电子产品多功能复合膜自动化生产技术改造项目"]
[10,null,"苏州勤灏精密机械有限公司","技术改造"]
[11,null,"苏州威斯东山电子技术有限公司","苏州威斯东山电子技术有限公司扩建年产电子陶瓷器件2500万只项目"]
[12,null,"可口可乐装瓶商生产（苏州）有限公司","非碳酸饮料生产线设备技术改造项目"]
[13,null,"苏州世沃电子科技有限公司","年产5亿片高精度电子绝缘贴片生产线技术改造项目"]
[14,null,"苏州市昌星模具机械有限公司","年产航空零部件5千件和液压机械部件5万件的智能化生产线"]
[15,null,"苏州义联精密五金有限公司","高精密汽车金属零部件生产线智能装备提升改造项目"]
[16,null,"苏州昶智精密机械有限公司","年产100万件撞针高精密生产技术改造项目"]
[17,null,"苏州欣天新精密机械有限公司","金属元器件自动化技术改造项目"]
[18,null,"苏州永基精密五金制品有限公司","汽车紧固件生产线技术改造项目"]
[19,null,"苏州丰泰精密机械有限公司","年产50万套汽车空调压缩机用精密零部件技术改造项目"]
[20,null,"配伟奥精密金属部件(苏州)有限公司","扩建年加工1600万件汽车零部件"]
[21,null,"苏州同富裕电子科技有限公司","苏州同富裕电子科技有限公司谐振杆产品加工生产线技术改造项目"]
[22,null,"苏州康丽达精密电子有限公司","年产2000万只口罩生产线技术改造项目"]
[23,null,"苏州新大陆精密科技股份有限公司","年产5万件的高精度工装治具生产线智能改造项目"]
[24,null,"赫比（苏州）精密模具有限公司","赫比（苏州）精密模具有限公司年产500套模具扩建项目"]
[25,null,"苏州浅米科技有限公司","PFA薄膜生产线技术改造"]
[26,null,"苏州银禧新能源复合材料有限公司","年产100万套新能源复合材料结构件技术改造项目"]
[27,null,"苏州莱恩精工合金股份有限公司","购置铝压延设备提高铝型材生产效率的技术改造项目"]
[28,null,"苏州恒恺机械有限公司","军工和航空零部件生产技术改造项目"]
[29,null,"苏州立创精密模具科技有限公司","模具智能制造车间改造项目"]
[30,null,"苏州肯美特设备集成有限公司","核磁共振控制柜自动化生产线技术改造项目"]
[31,null,"苏州弘磊光电有限公司","节能环保发光二极管生产线技术改造项目"]
[32,null,"苏州市百诺塑胶有限责任公司","提高新能源汽车零部件生产线产能与质量的技术改造"]
[33,null,"苏州东振路桥工程有限公司","环保型沥青砼自动化搅拌摊铺技术改造项目"]
[34,null,"苏州艾锐珐金属制品有限公司","年产10万个金属钣金件技改项目"]
[35,null,"苏州群凯利精工股份有限公司","注塑及冲压生产线自动化改造项目"]
[36,null,"苏州市达瑞电子材料有限公司","年产7500万PCS电子产品生产线技术改造项目"]
[37,null,"高桥金属制品（苏州）有限公司","年产900万件汽车电动转向器配件冲压，焊接生产线技术改造项目"]
[38,null,"苏州祥弘精密模具有限公司","电脑配件模具生产线技术改造项目"]
[39,null,"苏州华正工业科技有限公司","55/65型重承载直线导轨精密加工机械设备技术改造"]
[40,null,"苏州威创达智能设备有限公司","年产100件OLED智能装备生产线的技术改造"]
[41,null,"苏州锦良光电材料有限公司","光学膜片生产线技术改造项目"]
[42,null,"华纳科技（苏州）有限公司","年产20万件电动汽车用精密注塑零部件技术改造项目"]
[43,null,"苏州华纳精密模具有限公司","年产15万件汽车精密注塑零部件技术改造项目"]
[44,null,"苏州市欣龙塑胶模具有限公司","年产450套注塑模具智能生产线技术改造项目"]
[45,null,"苏州市星旭针织服饰有限公司","购置全自动智能横机对车间进行智能化升级改造"]
[46,null,"苏州钛盟科技精密模具有限公司","苏州钛盟科技精密模具有限公司高精密轴承精准导向器智能加工技术改造项目"]
[47,null,"苏州泓铨泰五金制品有限公司","特斯拉充电桩自动化智能生产线技术改造"]
[48,null,"苏州格巨电子科技有限公司","半导体高效精准测试接口自动化生产线技术改造项目"]
[49,null,"苏州祥崴电子有限公司","关于生产变压器、电感器生产线技术改造"]
[50,null,"苏州碧螺天然泉食品饮料有限公司","包装饮用水生产线技术改造项目"]
[51,null,"苏州东昊塑胶五金有限公司","精密自动化信息化模具制造的技术改造"]
[52,null,"苏州精慧思模具有限公司","年产500吨注塑产品生产线技术改造项目"]
[53,null,"苏州艺宏精密机械有限公司","通讯设备精密零部件自动化生产线技术改造项目"]
[54,null,"苏州伟铂瑞信电子科技有限公司","年产1亿片电视零部件技术改造项目"]
[55,null,"苏州市伟业金属制品有限公司","营林及人工植被工业化生产设备制造技术开发改造项目"]
[56,null,"苏州安信塑业有限公司","新材料生产加工自动化技术改造项目"]
[57,null,"浙江大胜达包装苏州有限公司","年产800万平方米瓦楞纸箱生产线技术改造项目"]
[58,null,"苏州欧利勤电子科技有限公司","年产智能家居控制盒120万件技术改造项目"]
[59,null,"苏州捷尔力实业有限公司","微型电机配件冲压生产线技术改造项目"]
[60,null,"苏州富菱龙机械有限公司","金属材料加工技术改造项目"]
[61,null,"苏州展翘电器有限公司","多功能家庭清洁护理器自动化生产技术改造项目"]
[62,null,"赫比（苏州）电子有限公司","赫比（苏州）电子有限公司年产250万件SMT组装件技改项目"]
[63,null,"苏州马谷光学有限公司","年产2500万片光学精密透镜、镜片及 模组技术改造项目"]
[64,null,"苏州远上精密机械有限公司","液压马达核心件自动化生产技术改造项目"]
[65,null,"苏州艾布纳精密机械有限公司","自动化成套设备高精密部件生产线技术改造项目"]
[66,null,"乐开科技（苏州）有限公司","精密钣金及注塑生产线技术改造项目"]
[67,null,"苏州市旺斯特机械制造有限公司","机械加工技术改造项目"]
[68,null,"苏州东跃精密电子有限公司","D4X端子弹片生产线技术改造项目"]
[69,null,"苏州市利瑞莱精密钣金制造有限公司","高效农机精密钣金制造自动化生产线技术改造项目"]
[70,null,"苏州宝得佳新材料有限公司","新材料生产加工自动化技术改造项目"]
[71,null,"苏州翠屏塑胶有限公司","年产UPVC25万米、CPVC20万米高端管材生产线技术改造项目"]
[72,null,"艾华新动力电容（苏州）有限公司","年产6亿只薄膜电容器生产线改造项目"]
[73,null,"苏州市德格恩机电有限公司","用于航空、军工及医疗行业的机械零配件加工的技术改造项目"]
[74,null,"苏州华承航包装有限公司","包装技术改造项目"]
[75,null,"苏州威登智能科技有限公司","年产100万件汽车焊接件以及5万件机"]
[76,null,"苏州兴广五金制品有限公司","扩建年产6千万件化妆品包装容器等项目"]
[77,null,"苏州精科裕精密模架有限公司","苏州精科裕精密模架有限公司精密模架生产技术改造项目"]
[78,null,"航天华盛源机电（苏州）有限公司","年产1500万件的散热器生产线的技术改造项目"]
[79,null,"金莱宝智能设备（苏州）有限公司","年产5万件行星减速机项目技术改造"]
[80,null,"苏州龙辉钢模科技有限公司","高端模具加工制造生产线技术改造项目"]
[81,null,"苏州有巢氏家居有限公司","装配式整体卫浴智能生产技改项目"]
[82,"智能化改造项目","日立电线（苏州）有限公司",{"$f":"VLOOKUP(C85,[1]visit!$D:$E,2,FALSE)","v":"新能源汽车驱动电机关键零部件生产技术改造项目"}]
[83,null,"苏州绿的谐波传动科技股份有限公司",{"$f":"VLOOKUP(C86,[1]visit!$D:$E,2,FALSE)","v":"引进先进设备进行机器人用高精密谐波减速器生产及技术改造项目"}]
[84,null,"AW(苏州）汽车零部件有限公司",{"$f":"VLOOKUP(C87,[1]visit!$D:$E,2,FALSE)","v":"年产20040台纯电动汽车用驱动变速箱项目"}]
[85,null,"苏州东山精密制造股份有限公司",{"$f":"VLOOKUP(C88,[1]visit!$D:$E,2,FALSE)","v":"LCM模组智能化车间"}]
[86,null,"苏州安洁科技股份有限公司",{"$f":"VLOOKUP(C89,[1]visit!$D:$E,2,FALSE)","v":"引进自动化设备生产智能手机用无线充电产品项目"}]
[87,null,"东研（苏州）热处理有限公司",{"$f":"VLOOKUP(C90,[1]visit!$D:$E,2,FALSE)","v":"东研（苏州）热处理有限公司生产线技术改造项目"}]
[88,null,"适新科技（苏州）有限公司",{"$f":"VLOOKUP(C91,[1]visit!$D:$E,2,FALSE)","v":"市级示范智能车间认定奖励"}]
[89,null,"亚东工业（苏州）有限公司",{"$f":"VLOOKUP(C92,[1]visit!$D:$E,2,FALSE)","v":"江苏省示范智能车间"}]
[90,null,"琪俐（苏州）纺织有限公司",{"$f":"VLOOKUP(C93,[1]visit!$D:$E,2,FALSE)","v":"2019年苏州市示范智能车间"}]
[91,null,"苏州贝克诺斯电子科技股份有限公司",{"$f":"VLOOKUP(C94,[1]visit!$D:$E,2,FALSE)","v":"口罩自动化生产线智能化改造项目　"}]
[92,null,"爱而泰可新材料（苏州）有限公司",{"$f":"VLOOKUP(C95,[1]visit!$D:$E,2,FALSE)","v":"瓶盖生产线改造的自动化项目"}]
[93,null,"苏州鑫叶自动化设备系统有限公司",{"$f":"VLOOKUP(C96,[1]visit!$D:$E,2,FALSE)","v":"塑胶成型智能化技术改造项目"}]
[94,null,"苏州精锐精密机械有限公司",{"$f":"VLOOKUP(C97,[1]visit!$D:$E,2,FALSE)","v":"年产100万件汽车部件智能化生产线技术改造项目"}]
[95,null,"赫比（苏州）通讯科技有限公司",{"$f":"VLOOKUP(C98,[1]visit!$D:$E,2,FALSE)","v":"赫比（苏州）通讯科技有限公司年产4000万套智能数码电子类产品技改项目"}]
[96,null,"苏州维信电子有限公司",{"$f":"VLOOKUP(C99,[1]visit!$D:$E,2,FALSE)","v":"2019年苏州市示范智能车间"}]
[97,null,"苏州中鼎冶金有限公司",{"$f":"VLOOKUP(C100,[1]visit!$D:$E,2,FALSE)","v":"粉末冶金制品生产线智能化改造项目　"}]
[98,null,"苏州新智机电工业有限公司",{"$f":"VLOOKUP(C101,[1]visit!$D:$E,2,FALSE)","v":"汽车空调系统零部件生产线智能化技术改造项目"}]
[99,null,"苏州天裕塑胶有限公司",{"$f":"VLOOKUP(C102,[1]visit!$D:$E,2,FALSE)","v":"超精密卷芯管生产线智能化改造"}]
[100,null,"伟创力电脑（苏州）有限公司",{"$f":"VLOOKUP(C103,[1]visit!$D:$E,2,FALSE)","v":"通信设备制造车间"}]
[101,null,"苏州昆仑绿建木结构科技股份有限公司",{"$f":"VLOOKUP(C104,[1]visit!$D:$E,2,FALSE)","v":"增产7500立方米胶合梁木全自动智能生产线技改项目　"}]
[102,null,"苏州宝丽洁日化有限公司",{"$f":"VLOOKUP(C105,[1]visit!$D:$E,2,FALSE)","v":"高速全自动装箱码垛消毒湿巾生产线智能化改造项目"}]
[103,null,"悦虎晶芯电路（苏州）股份有限公司",{"$f":"VLOOKUP(C106,[1]visit!$D:$E,2,FALSE)","v":"高精密互联线路板生产线智能化技术改造"}]
[104,null,"苏州华之杰电讯股份有限公司",{"$f":"VLOOKUP(C107,[1]visit!$D:$E,2,FALSE)","v":"电动工具零配件生产线智能化改造"}]
[105,null,"苏州荃华生物材料有限公司",{"$f":"VLOOKUP(C108,[1]visit!$D:$E,2,FALSE)","v":"全降解餐具智能化生产线改造"}]
[106,null,"苏州市乐能光伏有限公司","年产太阳能光伏组件电池板217万件生产线智能化改造项目"]
[107,null,"苏州亿洋泰电子科技有限公司",{"$f":"VLOOKUP(C110,[1]visit!$D:$E,2,FALSE)","v":"年扩产车载显示屏导光板1800万件的生产线技改项目"}]
[108,null,"苏州优耐鑫模具科技有限公司",{"$f":"VLOOKUP(C111,[1]visit!$D:$E,2,FALSE)","v":"苏州优耐鑫模具科技有限公司注塑模具智能生产线技术改造项目"}]
[109,null,"苏州市东山三联包装印刷有限公司",{"$f":"VLOOKUP(C112,[1]visit!$D:$E,2,FALSE)","v":"纸箱和不干胶标签智能化生产技术改造项目"}]
[110,null,"苏州瀚派电子科技有限公司",{"$f":"VLOOKUP(C113,[1]visit!$D:$E,2,FALSE)","v":"年产3000万台3C电子配件生产线的智能化改造项目"}]
[111,null,"苏州市强盛光光电有限公司",{"$f":"VLOOKUP(C114,[1]visit!$D:$E,2,FALSE)","v":"年产40亿个LED灯珠智能车间建设项目　"}]
[112,null,"江苏科曜能源科技有限公司",{"$f":"VLOOKUP(C115,[1]visit!$D:$E,2,FALSE)","v":"扩建年产18000件光伏储能逆变器项目"}]
[113,null,"苏州锦新纳米科技有限公司",{"$f":"VLOOKUP(C116,[1]visit!$D:$E,2,FALSE)","v":"自动化注塑机、吹塑机设备一体化技术改造"}]
[114,null,"苏州世铖鑫铧精密技术有限公司",{"$f":"VLOOKUP(C117,[1]visit!$D:$E,2,FALSE)","v":"航空航天精密零部件自动化生产技术改造项目"}]
[115,null,"苏州协同创新智能制造装备有限公司",{"$f":"VLOOKUP(C118,[1]visit!$D:$E,2,FALSE)","v":"年产500套智能模具技改项目"}]
[116,null,"苏州华恒医用器械有限公司",{"$f":"VLOOKUP(C119,[1]visit!$D:$E,2,FALSE)","v":"高速涡轮牙钻自动化生产技术改造项目"}]
[117,null,"苏州秀源精密电子有限公司",{"$f":"VLOOKUP(C120,[1]visit!$D:$E,2,FALSE)","v":"电脑零部件生产线智能化改造项目"}]
[118,"系统集成和技术服务商补助项目","苏州赛腾精密电子股份有限公司","无线充电线圈自动装配生产线"]
[119,null,"航天工程装备（苏州）有限公司","电池托盘智能化产线"]
[120,null,"苏州凯尔博精密机械有限公司","机器人非金属智能焊接流水线"]
[121,null,"苏州杰锐思智能科技股份有限公司","系统集成商和技术服务商补助项目"]
[122,null,"苏州赛腾菱欧智能科技有限公司","汽车马达智能装配设备"]
[123,null,"苏州茂特斯自动化设备有限公司","系统集成商和技术服务商补助项目"]
[124,null,"苏州贝爱特自动化科技有限公司","支持智能制造技术应用"]
[125,null,"苏州英维特精密机械有限公司","非标智能化装备系统集成项目"]
[126,null,"苏州市运泰利自动化设备有限公司","锂电池测试自动线"]
[127,null,"江苏荣辉信息科技有限公司","智能工厂系统集成与云办公建设"]
[128,null,"广运机电（苏州）有限公司","液晶显示器智能化生产线系统集成项目"]
[129,null,"江苏中有信科技有限公司","基于工业互联网的制药智能制造系统集成"]
[130,null,"苏州超群智能科技有限公司","系统集成商和技术服务商"]
[131,null,"苏州托玛斯机器人集团有限公司","苏州托玛斯系统集成商智能化改造补助项目"]
[132,null,"苏州市越海拉伸机械有限公司","苏州越海系统集成商智能化改造补助项目"]
[133,"智能产品推广项目","苏州华电电气股份有限公司","服务于电网运行安全的智能移动测试装备推广项目"]
[134,null,"苏州韩博环境科技有限公司","分布式模块化有机废弃物资源利用装备产品推广"]
[135,"智能设备租赁项目","苏州市越洋印刷有限公司","年新增印刷5万纸令生产技术改造项目"]
[136,"智能工厂（车间）创建奖励","苏州宝丽洁医疗科技有限公司","医疗卫生用品生产智能车间"]
[137,null,"苏州东山精密制造股份有限公司","LCM模组智能化车间"]
[138,null,"伟创力电脑（苏州）有限公司","通信设备制造车间"]
[139,null,"亚东工业（苏州）有限公司","江苏省示范智能车间"]
[140,null,"琪俐（苏州）纺织有限公司","2019年苏州市示范智能车间"]
[141,null,"苏州维信电子有限公司","2019年苏州市示范智能车间"]
[142,null,"适新科技（苏州）有限公司","市级示范智能车间认定奖励"]
[143,null,"亚东工业（苏州）有限公司","苏州市示范智能车间"]
[144,null,"琦伟（苏州）纺织有限公司","2019年苏州市示范智能车间"]
[145,null,"凯博易控车辆科技（苏州）股份有限公司","新能源车辆传动系统自动化车间"]
[146,null,"苏州飞华铝制工业有限公司","示范智能车间认定奖励"]
[147,null,"三洋能源（苏州）有限公司","CPP智能化车间"]
[148,"技术中心、工业技术中心","苏州好特斯模具有限公司","企业技术中心奖励"]
[149,null,"苏州市吴中区伟良电子有限公司","企业技术中心奖励"]
[150,null,"江苏景盟针织企业有限公司","企业技术中心奖励"]
[151,null,"苏州英田电子科技有限公司","企业技术中心奖励"]
[152,null,"苏州诚镓精密制造有限公司","企业技术中心奖励"]
[153,null,"苏州新大陆精密科技股份有限公司","企业技术中心奖励"]
[154,null,"苏州格尔斯计算机信息技术有限公司","企业技术中心奖励"]
[155,null,"苏州广立信息技术有限公司","企业技术中心奖励"]
[156,null,"苏州德机自动化科技有限公司","工业设计中心奖励"]
[157,null,"苏州茂特斯自动化设备有限公司","工业设计中心奖励"]
[158,null,"苏州优德通力科技有限公司","工业设计中心奖励"]
[159,null,"苏州诺达佳自动化技术有限公司","工业设计中心奖励"]
[160,null,"苏州伟创电气科技股份有限公司","工业设计中心奖励"]
[161,null,"苏州科迪流体控制设备有限公司","工业设计中心奖励"]
[162,null,"苏州赫格智能科技有限公司","工业设计中心奖励"]
[163,"鼓励企业创新能力建设","苏州伟创电气科技股份有限公司","企业技术中心"]
[164,null,"苏州绿的谐波传动科技股份有限公司","企业技术中心"]
[165,null,"苏州优德通力科技有限公司","企业技术中心"]
[166,null,"苏州凯尔博精密机械有限公司","企业技术中心"]
[167,null,"苏州韩博环境科技有限公司","企业技术中心"]
[168,null,"悦虎电路（苏州）有限公司","企业技术中心"]
[169,null,"苏州市万祥科技股份有限公司","企业技术中心"]
[170,null,"凯博易控车辆科技（苏州）股份有限公司","企业技术中心"]
[171,null,"苏州杰锐思智能科技股份有限公司","企业技术中心"]
[172,null,"浪潮金融信息技术有限公司","企业技术中心"]
[173,null,"苏州新智机电工业有限公司","企业技术中心"]
[174,null,"苏州达翔新材料有限公司","企业技术中心"]
[175,null,"适新科技（苏州）有限公司","企业技术中心"]
[176,null,"苏州中央可锻有限公司","企业技术中心"]
[177,null,"航天工程装备（苏州）有限公司 ","企业技术中心"]
[178,null,"江苏瑞苏科技有限公司","企业技术中心"]
[179,"新兴产业重大项目","苏州药明检测检验有限责任公司","生物安全检测中心平台建设项目"]
[180,null,"江苏迈信林航空科技股份有限公司","年产50万件（套）高精度航空发动机关键部件、起落架部件及航空精密结构件的研发及产业化"]
[181,null,"苏州精濑光电有限公司","苏州精濑光电有限公司年产340台套新型显示智能装备项目"]
[182,null,"苏州苏驼通信科技股份有限公司","5G通信用光模块产品扩建项目"]
[183,null,"苏州石川制铁有限公司","扩迁建年产10万吨球墨铸件项目"]
[184,null,"苏州西山中科药物研究开发有限公司","放射性同位素实验室新建项目"]
[185,"关键技术成果转换项目","苏州万祥科技股份有限公司","TCO玻璃与镍片自动贴合生产技术的研发与应用"]
[186,null,"苏州三基铸造装备股份有限公司"," SCH630智能化精密卧式挤压铸造生产线产业化"]
[187,null,"苏州天马医药集团天吉生物制药有限公司","多肽药物醋酸奥曲肽的产业化"]
[188,null,"苏州市双马机电有限公司","发动机进气增压装置关键技术研发成果转化项目"]
[189,null,"苏州万德福尔新材料有限公司","新型无光弹力热转移膜的研发与产业化"]
[190,null,"苏州盛亿电机有限公司","高性能电动自行车电机技术的研发与产业化"]
[191,null,"信和新材料（苏州）有限公司","防腐耐候的水性立体仿龟纹效果漆的研发及产业化"]
[192,null,"苏州欧康诺电子科技股份有限公司","固态硬盘（SSD）测试和生产系统成果转化项目"]
[193,null,"苏州金世博精密机电有限公司","灌装设备用高效传送链的产业化"]
[194,null,"苏州市星辰新材料集团有限公司","新型隔热阻燃外保温材料的研发及产业化"]
[195,null,"科沃斯家用机器人有限公司","无线擦窗机器人的研究和开发生产"]
[196,"首台（套）装备认定奖励","苏州精濑光电有限公司","首台套装备奖励液晶面板宏观检查仪"]
[197,"加快工业互联网发展","苏州安极能新能源发展有限公司","基于物联网和云计算技术的安极能电力运维工业互联云平台的建设"]
[198,null,"三洋能源（苏州）有限公司","锂电池智能制造工业互联网项目"]
[199,null,"苏州智能制造研究院有限公司","“灵岩”工业互联网服务平台"]
[200,"培育壮大软件产业","苏州国网电子科技有限公司","培育壮大软件产业"]
[201,null,"江苏新弈软件有限公司","培育壮大软件产业"]
[202,null,"苏州恒赛特自动化科技有限公司","培育壮大软件产业"]
[203,null,"苏州格尔斯计算机信息技术有限公司","培育壮大软件产业"]
[204,"工业软件发展项目","苏州伟创电气科技股份有限公司","培育壮大软件产业"]
[205,null,"苏州双祺自动化设备有限公司","培育壮大软件产业"]
[206,"两化深度融合","欣日兴精密电子（苏州）有限公司","江苏省四星级上云企业"]
[207,null,"苏州夏威宜环保科技有限公司","江苏省四星级上云企业"]
[208,null,"苏州沃斯曼精密机械有限公司","江苏省四星级上云企业"]
[209,null,"科沃斯机器人股份有限公司","江苏省四星级上云企业"]
[210,null,"江苏荣辉信息科技有限公司","江苏省四星级上云企业"]
[211,null,"江苏迪盛智能科技有限公司","江苏省四星级上云企业"]
[212,null,"苏州天一信德环保科技有限公司","江苏省四星级上云企业"]
[213,null,"苏州德创测控科技有限公司","江苏省四星级上云企业"]
[214,null,"琪俐（苏州）纺织有限公司","江苏省四星级上云企业"]
[215,null,"永旺永乐（江苏）物业服务有限公司","江苏省四星级上云企业"]
[216,null,"苏州维信电子有限公司","江苏省四星级上云企业"]
[217,null,"浪潮金融信息技术有限公司","江苏省四星级上云企业"]
[218,null,"苏州瑞可达连接系统股份有限公司","江苏省四星级上云企业"]
[219,null,"琦伟（苏州）纺织有限公司","江苏省四星级上云企业"]
[220,null,"苏州小灵猫信息科技有限公司","江苏省三星级上云企业"]
[221,null,"苏州灵趣信息科技有限公司","江苏省三星级上云企业"]
[222,null,"苏州市凯莱叶制衣有限公司","江苏省三星级上云企业"]
[223,null,"苏州乔亚机械科技有限公司","江苏省三星级上云企业"]
[224,null,"江苏大橡木集团有限公司","江苏省三星级上云企业"]
[225,null,"苏州斯莱克精密设备股份有限公司","江苏省三星级上云企业"]
[226,null,"苏州市星辰新材料集团有限公司","江苏省三星级上云企业"]
[227,null,"苏州思迪信息技术有限公司","江苏省三星级上云企业"]
[228,null,"苏州市大创信息运用有限公司","江苏省三星级上云企业"]
[229,null,"苏州星点点信息科技有限公司","江苏省三星级上云企业"]
[230,null,"苏州智东信息技术有限公司","江苏省三星级上云企业"]
[231,null,"苏州唐云信息技术有限公司","江苏省三星级上云企业"]
[232,null,"苏州国网电子科技有限公司 ","江苏省三星级上云企业"]
[233,null,"苏州小牛信息科技有限公司","江苏省三星级上云企业"]
[234,null,"苏州展翘电器有限公司","江苏省三星级上云企业"]
[235,null,"苏州东山精密制造股份有限公司","江苏省三星级上云企业"]
[236,null,"苏州紫焰网络科技有限公司","江苏省三星级上云企业"]
[237,null,"苏州瑞达尔传动系统有限公司","江苏省三星级上云企业"]
[238,null,"苏州极豹信息科技有限公司","江苏省三星级上云企业"]
[239,null,"苏州骏创汽车科技股份有限公司","江苏省三星级上云企业"]
[240,null,"苏州杰锐思智能科技股份有限公司","江苏省三星级上云企业"]
[241,null,"苏州群凯利精工股份有限公司","江苏省三星级上云企业"]
[242,null,"苏州科迪流体控制设备有限公司","江苏省三星级上云企业"]
[243,null,"氟络塞尔特种阀门（苏州）有限公司","江苏省三星级上云企业"]
[244,null,"苏州万佳电器有限公司","江苏省三星级上云企业"]
[245,null,"苏州易优米信息科技有限公司","江苏省三星级上云企业"]
[246,null,"苏州市易恒智行信息科技有限公司","江苏省三星级上云企业"]
[247,null,"苏州沃达园林机械有限公司","江苏省三星级上云企业"]
[248,null,"苏州彩虹糖软件技术有限公司","江苏省三星级上云企业"]
[249,null,"苏州绯闻网络科技有限公司","江苏省三星级上云企业"]
[250,null,"苏州蘑菇云网络科技有限公司","江苏省三星级上云企业"]
[251,null,"创智汇(苏州)电子商务有限公司","江苏省三星级上云企业"]
[252,null,"苏州塔思智慧信息科技有限公司","江苏省三星级上云企业"]
[253,null,"江苏云立物联科技有限公司","江苏省三星级上云企业"]
[254,null,"苏州市爱生生物技术有限公司","江苏省三星级上云企业"]
[255,null,"江苏玄通供应链股份有限公司","江苏省三星级上云企业"]
[256,null,"苏州万牛网络科技有限公司","江苏省三星级上云企业"]
[257,null,"苏州市星辰科技有限公司","江苏省三星级上云企业"]
[258,null,"苏州市东望钣金有限公司","江苏省三星级上云企业"]
[259,null,"苏州橙子快跑食品科技有限公司","江苏省三星级上云企业"]
[260,null,"苏州亓研信息科技有限公司","江苏省三星级上云企业"]
[261,null,"江苏吴中实业股份有限公司","江苏省三星级上云企业"]
[262,null,"江苏锦秀年华科技有限公司","江苏省三星级上云企业"]
[263,null,"江苏盖睿健康科技有限公司","江苏省三星级上云企业"]
[264,null,"苏州服务到家网络技术有限公司","江苏省三星级上云企业"]
[265,null,"苏州欧利勤电子科技有限公司","江苏省三星级上云企业"]
[266,null,"苏州也度假网络科技有限公司","江苏省三星级上云企业"]
[267,null,"苏州腾冉电气设备股份有限公司","江苏省两化融合试点"]
[268,null,"苏州新业电子股份有限公司","江苏省两化融合试点"]
[269,null,"苏州苏驼通信科技股份有限公司","江苏省两化融合试点"]
[270,null,"苏州卡茗特自动化设备有限公司","江苏省两化融合试点"]
[271,null,"苏州骏创汽车科技股份有限公司","江苏省两化融合试点"]
[272,null,"苏州新智机电工业有限公司","江苏省两化融合试点"]
[273,null,"苏州茂特斯自动化设备有限公司","江苏省两化融合试点"]
[274,null,"苏州快捷智能科技有限","江苏省两化融合试点"]
[275,null,"苏州沃达园林机械有限公司","江苏省两化融合试点"]
[276,null,"苏州优敖智能科技有限公司","江苏省两化融合试点"]
[277,null,"光大环保（苏州）固废处置有限公司","江苏省两化融合试点"]
[278,null,"光大环保能源（苏州）有限公司","江苏省两化融合试点"]
[279,null,"苏州华纳精密模具有限公司","江苏省两化融合试点"]
[280,null,"赫比（苏州）通讯科技有限公司","江苏省两化融合试点"]
[281,null,"苏州启点机械有限公司","江苏省两化融合试点"]
[282,null,"琪俐（苏州）纺织有限公司","江苏省两化融合试点"]
[283,null,"苏州维信电子有限公司","江苏省两化融合试点"]
[284,null,"江苏盖睿健康科技有限公司","江苏省两化融合试点"]
[285,null,"苏州市华瑞热控制技术有限公司","江苏省两化融合试点"]
[286,null,"苏州金禾新材料股份有限公司","江苏省两化融合试点"]
[287,null,"适新科技（苏州）有限公司","江苏省两化融合试点"]
[288,null,"苏州市凯莱叶制衣有限公司","苏州市工业互联网典型应用"]
[289,null,"苏州久越金属科技有限公司","苏州市工业互联网典型应用"]
[290,null,"苏州宝丽洁日化有限公司","苏州市工业互联网典型应用"]
[291,null,"苏州市星辰新材料集团有限公司","苏州市工业互联网典型应用"]
[292,null,"苏州维信电子有限公司","苏州市工业互联网典型应用"]
[293,null,"苏州金记食品有限公司","苏州市工业互联网典型应用"]
[294,null,"亚东工业（苏州）有限公司","苏州市工业互联网典型应用"]
[295,null,"伟创力电脑（苏州）有限公司","江苏省工业互联网标杆工厂"]
[296,null,"苏州维信电子有限公司","江苏省工业互联网标杆工厂"]
[297,null,"和成（中国）有限公司","两化融合管理体系贯标"]
[298,null,"苏州永基精密五金制品有限公司","两化融合管理体系贯标"]
[299,null,"苏州新业电子股份有限公司","两化融合管理体系贯标"]
[300,null,"苏州市星辰新材料集团有限公司","两化融合管理体系贯标"]
[301,null,"苏州昆仑绿建木结构科技股份有限公司","两化融合管理体系贯标"]
[302,null,"苏州苏驼通信科技股份有限公司","两化融合管理体系贯标"]
[303,null,"苏州东瑞制药有限公司","两化融合管理体系贯标"]
[304,null,"苏州启点机械有限公司","两化融合管理体系贯标"]
[305,null,"苏州石川制铁有限公司","两化融合管理体系贯标"]
[306,null,"伟创力电脑（苏州）有限公司","两化融合管理体系贯标"]
[307,null,"苏州维信电子有限公司","两化融合管理体系贯标"]
[308,null,"江苏盖睿健康科技有限公司","两化融合管理体系贯标"]
[309,null,"琦伟（苏州）纺织有限公司","两化融合管理体系贯标"]
[310,null,"远东服装（苏州）有限公司","两化融合管理体系贯标"]
[311,null,"苏州橙子快跑食品科技有限公司","两化融合管理体系贯标"]
[312,"企业诚信体系建设","苏州比林特流体控制有限公司","市示范"]
[313,null,"苏州斯莱克精密设备股份有限公司","市示范"]
[314,null,"苏州中阑文化科技有限公司","市示范"]
[315,null,"苏州维信电子有限公司","市示范"]
[316,null,"苏州市万祥电器成套有限公司","市示范"]
[317,null,"苏州格尔斯计算机信息技术有限公司","市示范"]
[318,null,"苏州天一信德环保科技有限公司","市示范"]
[319,null,"汤始建华建材(苏州)有限公司","省示范"]
[320,"专精特新发展项目","江苏吴中医药集团有限公司","抗病毒药物的研究及建设项目"]
[321,null,"凯博易控车辆科技（苏州）股份有限公司","凯博易控专精特新发展项目"]
[322,null,"苏州晶瑞化学股份有限公司","高性能光刻胶开发项目"]
[323,null,"苏州飞华铝制工业有限公司","高强度多功能登高器具专精特新发展项目"]
[324,null,"苏州市立普医疗科技有限公司","一次性超声探头穿刺架项目"]
[325,null,"苏州制氧机股份有限公司","KDN1000-KDN5000制氮设备专精特新发展项目"]
[326,null,"追创科技（苏州）有限公司","智能服务机器人配套专用的绿色电机项目"]
[327,null,"苏州永捷电机有限公司","串激电机精益生产集成平台建设"]
[328,null,"苏州市吴中喷丝板有限公司","高精度超细喷丝板研发及产业化"]
[329,"做强区域产业链","科沃斯机器人股份有限公司","做强区域产业链"]
[330,null,"苏州维信电子有限公司","做强区域产业链"]
[331,null,"苏州东山精密制造股份有限公司","做强区域产业链"]
[332,null,"苏州汇川技术有限公司","做强区域产业链"]
[333,null,"苏州安洁科技股份有限公司 ","做强区域产业链"]
[334,"科技小巨人和专精特新产品认定","苏州凯尔博精密机械有限公司  ","2019年度江苏省小巨人企业（制造类）\n2019年苏州市专精特新示范中小企业"]
[335,null,"苏州瑞红电子化学品有限公司","2019年度江苏省小巨人企业（制造类）"]
[336,null,"科沃斯机器人股份有限公司","2019年度江苏省专精特新产品"]
[337,null,"苏州市君悦新材料科技股份有限公司","2019年度江苏省专精特新产品"]
[338,null,"苏州飞华铝制工业有限公司","2019年苏州市专精特新示范中小企业"]
[339,null,"苏州金记食品有限公司 ","2019年苏州市专精特新示范中小企业"]
[340,null,"苏州晶瑞化学股份有限公司","2019年苏州市专精特新示范中小企业"]
[341,null,"苏州斯莱克精密设备股份有限公司","2019年苏州市专精特新示范中小企业"]
[342,null,"苏州宇邦新型材料股份有限公司","2019年苏州市专精特新示范中小企业"]
[343,null,"苏州瑞可达连接系统股份有限公司","2019年苏州市专精特新示范中小企业"]
[344,null,"苏州少士电子科技有限责任公司","2019年苏州市专精特新示范中小企业"]
[345,"合同能源管理项目","苏州爱能杰节能科技有限公司","张家港大新镇镇区路灯合同能源管理模式节能改造项目"]
[346,"循环经济项目","苏州百畅再生能源有限公司","苏州七子山垃圾填埋场富余填埋气发电项目"]
[347,null,"中农新科（苏州）有机循环研究院有限公司","环太湖有机废弃物资源化循环利用项目"]
[348,"节能新技术、新产品推广项目","苏州英维克温控技术有限公司","数据中心高效换热列间空调产品研发及产业化项目"]
[349,null,"苏州乔发环保科技股份有限公司","基于DCS控制系统的可循环式废水智能化环保处理装备的研发及产业化"]
[350,"能源审计项目","苏州维信电子有限公司","能源审计"]
[351,null,"远纺织染(苏州)有限公司","能源审计"]
[352,null,"俐马(苏州)织染有限公司","能源审计"]
[353,null,"亚东工业（苏州）有限公司","能源审计"]
[354,null,"苏州市江远热电有限责任公司","能源审计"]
[355,null,"悦虎晶芯电路(苏州)股份有限公司","能源审计"]
[356,null,"光大环保能源（苏州）有限公司","能源审计"]
[357,null,"三洋能源（苏州）有限公司","能源审计"]
[358,null,"适新科技（苏州）有限公司","能源审计"]
[359,null,"苏州汇川技术有限公司","能源审计"]
[360,"清洁生产审核项目","苏州氢洁电源科技有限公司","清洁生产"]
[361,null,"苏州电器科学研究院股份有限公司","清洁生产"]
[362,null,"苏州天山新材料技术有限公司","清洁生产"]
[363,null,"琪俐(苏州)纺织有限公司","清洁生产"]
[364,null,"琦伟(苏州)纺织有限公司","清洁生产"]
[365,null,"苏州振吴电炉有限公司","清洁生产"]
[366,null,"苏州肯美特设备集成有限公司","清洁生产"]
[367,null,"苏州新凌高强度紧固件有限公司","清洁生产"]
[368,null,"苏州市华亭儿童用品有限公司","清洁生产"]
[369,null,"苏州凯佰乐电子有限公司 ","清洁生产"]
[370,null,"佳马机械涂覆科技（苏州）有限公司","清洁生产"]
[371,null,"苏州市协力环保设备有限公司","清洁生产"]
[372,null,"苏州悦路医用材料有限公司","清洁生产"]
[373,null,"华纳科技（苏州）有限公司","清洁生产"]
[374,null,"苏州市新广益电子有限公司","清洁生产"]
[375,null,"江苏塞维斯数控科技有限公司","清洁生产"]
[376,null,"苏州合景丰工艺品有限公司 ","清洁生产"]
[377,null,"苏州永捷电机有限公司","清洁生产"]
[378,null,"苏州托普斯环保科技有限公司","清洁生产"]
[379,null,"苏州东山新材料科技有限公司","清洁生产"]
[380,"鼓励智能装备做大做强奖励","科瑞工业自动化系统（苏州）有限公司","智能装备做大做强"]
[381,null,"追创科技（苏州）有限公司","追创科技上年度智能装备销售首超1亿元"]
[382,null,"苏州浪潮智能科技有限公司","2020 年加快吴中区机器人与智能制造产业提升发展项目-智能装备做大做强奖励"]
[383,null,"苏州隆成电子设备有限公司","智能装备做大做强奖励"]
[384,null,"苏州高润新能源科技有限公司","光伏组件自动化生产设备及流水线"]
[385,null,"苏州快捷智能科技有限","智能装备、关键部件年 收入首次超过5000万元奖励"]
[386,null,"苏州贝亚特精密自动化机械有限公司","汽车零部件自动化装配及检测设备"]
[387,null,"苏州腾冉电气设备股份有限公司","滤波器、电抗器首超一亿元"]
[388,null,"苏州卡茗特自动化设备有限公司","智能装备、关键部件年销售收入首次超过5000万元奖励"]
[389,null,"联盟自动化设备（苏州）有限公司","电机定子生产系统"]
[390,null,"苏州科韵激光科技有限公司","科韵激光智能装备销售收入超5000万奖励项目"]
[391,null,"苏州钧鼎自动化设备有限公司","智能装备、关键部件年销售收入首次超过2000万元"]
[392,null,"苏州市天烨医疗设备有限公司","智能装备、关键部件销售收入首次超过2000万元奖励"]
[393,null,"苏州市燃气设备阀门制造有限公司","全焊接直埋燃气闸阀、全焊接智能燃气球阀首超一亿元"]
[394,null,"梅兰日兰电气集团（苏州）有限公司","智能装备首超5000万"]
[395,null,"苏州思慕博物流设备有限公司","自动化立体仓库系统"]
[396,null,"苏州创轩激光科技有限公司","高精度激光加工设备"]
[397,null,"苏州敏喆机械有限公司","智能纺丝生产性专用设备首超5000万"]
[398,"企业做大做强奖励","苏州维信电子有限公司","企业做大做强奖励"]